bitfinex-derivatives/quotes_BTCF0:USTF0_20241008
["timestamp","ask_amount","ask_price","bid_price","bid_amount"]
[1728396739742,0.079693,62763.0,62762.0,0.3612]
[1728396740351,0.44088,62773.0,62762.0,0.3612]
[1728396740651,0.080079,62773.0,62772.0,0.0004]
[1728396740850,0.080079,62773.0,62772.0,0.080081]
[1728396740851,0.0004,62773.0,62772.0,0.080081]
[1728396741052,0.0004,62773.0,62772.0,0.0004]
[1728396741251,0.080079,62773.0,62772.0,0.0004]
[1728396741552,0.0004,62773.0,62772.0,0.0004]
[1728396741754,0.0064,62773.0,62772.0,0.080081]
[1728396742255,0.0004,62787.0,62772.0,0.0004]
[1728396742455,0.014,62773.0,62772.0,0.080081]
[1728396742647,0.014,62773.0,62772.0,0.440881]
[1728396742848,0.079663,62786.0,62777.0,0.079674]
[1728396743048,0.079667,62783.0,62782.0,0.6408]
[1728396743251,0.0004,62787.0,62782.0,0.6408]
[1728396743756,0.079667,62783.0,62782.0,0.3608]
[1728396744553,0.079667,62783.0,62782.0,0.39015081]
[1728396745556,0.091667,62783.0,62782.0,0.39115081]
[1728396745859,0.100667,62783.0,62782.0,0.39215081]
[1728396746058,0.021,62783.0,62782.0,0.47181881]
[1728396746650,0.021,62783.0,62782.0,1.60255881]
[1728396747259,0.301,62783.0,62782.0,0.03135081]
[1728396747448,0.301,62783.0,62762.0,0.0004]
[1728396747449,0.079692,62763.0,62762.0,0.0004]
[1728396747650,0.079704,62754.0,62753.0,0.0004]
[1728396747871,0.720504,62754.0,62753.0,0.0004]
[1728396748173,0.720504,62754.0,62745.0,0.3608]
[1728396748174,0.079714,62746.0,62745.0,0.3608]
[1728396749275,0.079714,62746.0,62745.0,0.3748]
[1728396750378,0.079709,62750.0,62745.0,0.3748]
[1728396750679,0.079709,62750.0,62749.0,0.0004]
[1728396751869,0.3608,62750.0,62724.0,0.3608]
[1728396752073,0.079733,62731.0,62724.0,0.3608]
[1728396752474,0.079738,62727.0,62724.0,0.3608]
[1728396752781,0.079738,62727.0,62726.0,0.02866107]
[1728396753083,0.07973,62734.0,62726.0,0.30866107]
[1728396753276,0.079729,62734.0,62733.0,0.0004]
[1728396754680,0.080729,62734.0,62733.0,0.0004]
[1728396754975,0.081729,62734.0,62733.0,0.0004]
[1728396755184,0.002,62734.0,62733.0,0.2804]
[1728396755574,0.002,62734.0,62733.0,0.36013]
[1728396755880,0.002,62734.0,62733.0,0.2804]
[1728396756777,0.002,62734.0,62733.0,0.36013]
[1728396758385,0.0004,62741.0,62738.0,0.079724]
[1728396758584,0.0004,62741.0,62740.0,0.28]
[1728396758775,0.079723,62739.0,62735.0,0.28]
[1728396758977,0.079721,62740.0,62737.0,0.3608]
[1728396759182,0.0004,62741.0,62737.0,0.3608]
[1728396759377,0.079722,62740.0,62737.0,0.3608]
[1728396759582,0.079724,62738.0,62737.0,0.3608]
[1728396760580,0.0014,62741.0,62737.0,0.3608]
[1728396760784,0.079724,62739.0,62737.0,0.3608]
[1728396761084,0.0024,62741.0,62737.0,0.3608]
[1728396761290,0.001,62738.0,62737.0,0.442525]
[1728396761479,0.001,62738.0,62737.0,0.722525]
[1728396762487,0.001,62739.0,62738.0,0.079724]
[1728396763388,0.001,62739.0,62737.0,0.724405]
[1728396763595,0.001,62739.0,62737.0,0.6438]
[1728396763797,0.0004,62750.0,62749.0,0.07971]
[1728396763992,0.0004,62750.0,62749.0,0.28]
[1728396764195,0.0004,62750.0,62749.0,0.6412]
[1728396764492,0.0004,62750.0,62749.0,0.72091]
[1728396764994,0.0034,62750.0,62749.0,0.6412]
[1728396765191,0.0044,62750.0,62749.0,0.6412]
[1728396765787,0.0024,62750.0,62749.0,0.6432]
[1728396766695,0.0024,62750.0,62749.0,0.75175235]
[1728396767292,0.0014,62750.0,62749.0,0.75175235]
[1728396767498,0.0014,62750.0,62749.0,0.75675235]
[1728396768399,0.0024,62750.0,62749.0,0.75675235]
[1728396769100,0.082109,62750.0,62749.0,0.03624235]
[1728396770199,0.082109,62750.0,62749.0,0.03324235]
[1728396770403,0.0024,62750.0,62749.0,0.39595235]
[1728396771092,0.0004,62750.0,62749.0,0.38995235]
[1728396771295,0.0014,62750.0,62749.0,0.39395235]
[1728396773496,0.0004,62754.0,62753.0,0.079705]
[1728396773702,0.080093,62763.0,62753.0,0.079705]
[1728396773703,0.0004,62763.0,62753.0,0.440505]
[1728396773900,0.0004,62763.0,62762.0,0.28]
[1728396774203,0.0004,62763.0,62762.0,0.360093]
[1728396774404,0.0004,62763.0,62762.0,1.438093]
[1728396775207,0.0014,62763.0,62762.0,1.441093]
[1728396775810,0.0014,62763.0,62762.0,1.444093]
[1728396776110,0.0023906,62771.0,62762.0,1.444093]
[1728396776306,0.0023906,62771.0,62770.0,0.080083]
[1728396776805,0.0628,62786.0,62782.0,0.079668]
[1728396777011,0.079663,62786.0,62785.0,0.2804]
[1728396778111,0.079663,62786.0,62785.0,0.30934569]
[1728396778303,0.093663,62786.0,62785.0,0.30934569]
[1728396778605,0.107663,62786.0,62785.0,0.30934569]
[1728396780010,0.028,62786.0,62785.0,0.30934569]
[1728396780407,0.028,62786.0,62785.0,0.38900969]
[1728396781206,0.0004,62791.0,62790.0,0.079658]
[1728396781409,0.0004,62791.0,62790.0,0.720858]
[1728396782107,0.079639,62806.0,62790.0,0.720858]
[1728396782305,0.3608,62808.0,62798.0,0.080048]
[1728396782509,0.079637,62807.0,62805.0,0.28]
[1728396782811,0.3608,62808.0,62806.0,0.079637]
[1728396783000,0.3608,62808.0,62807.0,0.079636]
[1728396783198,0.1197,62814.0,62805.0,0.28]
[1728396783403,0.079638,62806.0,62805.0,0.28]
[1728396783917,0.1197,62814.0,62805.0,0.28]
[1728396784210,0.07963,62812.0,62811.0,0.28]
[1728396785409,0.07963,62812.0,62811.0,0.001]
[1728396785410,0.08963,62812.0,62811.0,0.001]
[1728396786011,1.16723,62812.0,62805.0,0.001]
[1728396786210,1.16723,62812.0,62798.0,0.00278849]
[1728396786211,0.079646,62799.0,62798.0,0.00278849]
[1728396787314,0.079646,62799.0,62798.0,0.03150008]
[1728396787614,0.07964,62804.0,62801.0,0.079643]
[1728396787809,0.07964,62804.0,62803.0,0.28]
[1728396789314,0.079646,62799.0,62798.0,0.28278849]
[1728396789518,0.440446,62799.0,62798.0,0.00278849]
[1728396790509,0.918166,62799.0,62798.0,0.00278849]
[1728396790715,0.920166,62799.0,62798.0,0.00278849]
[1728396790905,0.448446,62799.0,62798.0,0.00378849]
[1728396791207,0.448446,62799.0,62798.0,0.0014]
[1728396791916,0.448446,62799.0,62798.0,0.081048]
[1728396792413,0.3688,62799.0,62798.0,0.081048]
[1728396793208,0.3688,62799.0,62798.0,0.441848]
[1728396793209,0.008,62799.0,62798.0,0.441848]
[1728396794216,0.079638,62806.0,62798.0,0.441848]
[1728396794412,0.079633,62810.0,62806.0,0.079637]
[1728396794710,0.07963,62812.0,62811.0,0.28]
[1728396794912,0.079635,62808.0,62807.0,0.28]
[1728396797005,0.008,62810.0,62807.0,0.30812208]
[1728396797205,0.087635,62808.0,62807.0,0.30912208]
[1728396797414,0.087635,62808.0,62807.0,0.38875808]
[1728396797715,0.009,62808.0,62807.0,0.38975808]
[1728396798520,0.088635,62808.0,62807.0,0.38975808]
[1728396799218,0.009,62808.0,62807.0,0.38975808]
[1728396800117,0.088635,62808.0,62807.0,0.38975808]
[1728396800318,0.009,62808.0,62807.0,0.38975808]
[1728396801018,0.079624,62818.0,62807.0,0.38975808]
[1728396801019,0.080024,62817.0,62816.0,0.079625]
[1728396801211,0.0004,62817.0,62816.0,0.359625]
[1728396802921,0.0064,62817.0,62816.0,0.360625]
[1728396803512,0.0064,62817.0,62816.0,0.38895519]
[1728396803720,0.0064,62817.0,62816.0,0.38995519]
[1728396804022,0.07969,62765.0,62755.0,0.079702]
[1728396804215,0.079679,62774.0,62757.0,0.079699]
[1728396804216,0.801292,62763.0,62757.0,0.079699]
[1728396804419,0.801292,62763.0,62746.0,0.3608]
[1728396804420,0.801292,62763.0,62759.0,0.30812531]
[1728396805115,0.801292,62763.0,62759.0,0.02812531]
[1728396805920,0.801292,62763.0,62762.0,0.0144]
[1728396806222,0.801292,62763.0,62762.0,0.0284]
[1728396806613,0.802292,62763.0,62762.0,0.0244]
[1728396807522,0.802292,62763.0,62762.0,0.0234]
[1728396809728,0.802292,62763.0,62762.0,0.0094]
[1728396809926,0.802292,62763.0,62762.0,0.0224]
[1728396810427,0.802292,62763.0,62762.0,0.0194]
[1728396810729,0.802292,62763.0,62762.0,0.0174]
[1728396811222,0.802292,62763.0,62762.0,1.2396]
[1728396817931,0.802292,62763.0,62762.0,1.5196]
[1728396819038,0.802292,62763.0,62762.0,1.2396]
[1728396819730,0.001,62763.0,62762.0,2.5976]
[1728396819926,0.0004,62771.0,62768.0,0.079686]
[1728396820229,0.079678,62775.0,62770.0,0.0004]
[1728396820534,0.079682,62771.0,62770.0,0.0004]
[1728396820732,0.079679,62773.0,62770.0,0.0004]
[1728396821032,0.079671,62780.0,62770.0,0.080082]
[1728396821224,0.079677,62776.0,62775.0,0.28]
[1728396821821,0.079673,62779.0,62775.0,0.28]
[1728396822133,0.3608,62781.0,62775.0,0.359676]
[1728396822525,0.0004,62786.0,62780.0,0.28]
[1728396822830,0.079669,62781.0,62780.0,0.28]
[1728396823029,0.079671,62780.0,62775.0,0.28]
[1728396823229,0.079671,62780.0,62779.0,0.079672]
[1728396823932,0.079671,62780.0,62775.0,0.285]
[1728396823933,0.079676,62776.0,62775.0,0.079676]
[1728396824130,0.0004,62786.0,62770.0,0.30936842]
[1728396824326,0.079672,62779.0,62777.0,0.079674]
[1728396824533,0.079671,62780.0,62779.0,0.009]
[1728396826033,0.079673,62779.0,62777.0,0.079674]
[1728396826226,0.079673,62778.0,62777.0,0.079674]
[1728396826833,0.079673,62778.0,62770.0,0.0004]
[1728396826834,1.07788,62778.0,62770.0,0.02963056]
[1728396827033,0.079682,62771.0,62770.0,0.0004]
[1728396827933,0.079682,62771.0,62770.0,0.080083]
[1728396829132,0.079682,62771.0,62770.0,0.0004]
[1728396829433,0.079682,62771.0,62770.0,0.087083]
[1728396829638,0.079682,62771.0,62770.0,0.0194]
[1728396830733,1.157602,62771.0,62768.0,0.02803665]
[1728396830940,0.079692,62763.0,62762.0,1.22498958]
[1728396831123,0.440492,62763.0,62762.0,1.22498958]
[1728396831324,1.518492,62763.0,62762.0,1.2226]
[1728396832327,1.519492,62763.0,62762.0,1.2366]
[1728396833436,1.520492,62763.0,62762.0,1.2506]
[1728396833832,1.800492,62763.0,62762.0,1.2506]
[1728396834036,1.82931031,62763.0,62762.0,1.2506]
[1728396836034,1.35131031,62763.0,62749.0,0.0004]
[1728396836335,1.002,62750.0,62733.0,0.0004]
[1728396836540,0.079729,62734.0,62733.0,0.537013]
[1728396836927,0.079725,62738.0,62737.0,0.079724]
[1728396837140,0.079729,62734.0,62733.0,0.56689725]
[1728396837334,0.079729,62734.0,62733.0,0.56609725]
[1728396837634,0.359729,62734.0,62733.0,0.02948525]
[1728396838742,0.359729,62734.0,62733.0,0.03348525]
[1728396839034,0.359729,62734.0,62733.0,0.0044]
[1728396839240,0.079738,62727.0,62726.0,0.0004]
[1728396839443,0.440538,62727.0,62726.0,0.0004]
[1728396840141,0.440538,62727.0,62726.0,0.10926184]
[1728396840333,0.441538,62727.0,62726.0,0.56614484]
[1728396840537,0.3618,62727.0,62726.0,0.56614484]
[1728396841645,0.002,62727.0,62726.0,0.56914484]
[1728396843242,0.0004,62734.0,62733.0,0.07973]
[1728396843446,0.0004,62734.0,62733.0,0.816613]
[1728396845146,0.0014,62734.0,62733.0,0.820613]
[1728396845539,0.0024,62734.0,62733.0,0.461883]
[1728396845741,0.0024,62734.0,62733.0,0.541613]
[1728396846651,0.0024,62734.0,62733.0,0.821613]
[1728396848149,0.0024,62734.0,62733.0,0.84512618]
[1728396848747,0.082129,62734.0,62733.0,0.02851318]
[1728396849346,0.082129,62734.0,62733.0,0.005]
[1728396851352,0.682129,62734.0,62733.0,0.005]
[1728396851647,0.079738,62727.0,62726.0,0.0004]
[1728396851854,0.720538,62727.0,62726.0,0.0004]
[1728396852041,1.71908,62727.0,62715.0,0.00279167]
[1728396852239,0.720552,62716.0,62715.0,0.00279167]
[1728396852439,0.720552,62716.0,62715.0,0.0004]
[1728396853249,1.320552,62716.0,62715.0,0.0004]
[1728396853439,1.681352,62716.0,62715.0,0.0004]
[1728396854455,0.079763,62707.0,62706.0,0.02294082]
[1728396854654,0.720563,62707.0,62706.0,0.0004]
[1728396854854,1.320563,62707.0,62706.0,0.0004]
[1728396855453,0.720563,62707.0,62706.0,0.0004]
[1728396855758,1.321563,62707.0,62706.0,0.0004]
[1728396855951,1.322563,62707.0,62706.0,0.0004]
[1728396856254,0.722563,62707.0,62706.0,0.0004]
[1728396856455,1.322563,62707.0,62706.0,0.0004]
[1728396856649,1.34596963,62707.0,62706.0,0.0004]
[1728396856849,1.34596963,62707.0,62699.0,0.0004]
[1728396857051,0.720572,62700.0,62699.0,0.0004]
[1728396857451,1.320572,62700.0,62699.0,0.0004]
[1728396858253,0.440572,62700.0,62699.0,0.0004]
[1728396858655,0.441572,62700.0,62699.0,0.0004]
[1728396858955,0.442572,62700.0,62699.0,0.0004]
[1728396859960,0.442572,62700.0,62699.0,0.537057]
[1728396860255,1.042572,62700.0,62699.0,0.0004]
[1728396860447,1.042572,62700.0,62662.0,0.3608]
[1728396860448,1.44028,62700.0,62662.0,0.3608]
[1728396860648,0.28,62674.0,62673.0,0.079807]
[1728396860856,0.079804,62675.0,62668.0,0.38360578]
[1728396861156,0.079804,62675.0,62674.0,0.079805]
[1728396861747,0.3608,62676.0,62675.0,0.079804]
[1728396862353,0.3608,62676.0,62675.0,0.536687]
[1728396862849,0.3608,62676.0,62675.0,0.816687]
[1728396863246,0.3608,62684.0,62683.0,0.079794]
[1728396863444,0.440593,62684.0,62683.0,0.456883]
[1728396863650,0.3608,62684.0,62683.0,0.536677]
[1728396864751,0.3618,62684.0,62683.0,0.536677]
[1728396865362,0.3628,62684.0,62683.0,0.536677]
[1728396865755,0.002,62684.0,62683.0,0.536677]
[1728396866252,0.3608,62712.0,62699.0,0.45648295]
[1728396866559,0.3608,62712.0,62683.0,0.28]
[1728396866560,0.3608,62712.0,62706.0,0.45648295]
[1728396866857,0.3608,62712.0,62706.0,0.53624795]
[1728396867057,0.080163,62707.0,62706.0,0.53624795]
[1728396867256,0.0004,62707.0,62706.0,0.53624795]
[1728396867560,0.080163,62707.0,62706.0,0.45648295]
[1728396867953,0.079767,62704.0,62703.0,0.079768]
[1728396868153,0.079771,62701.0,62700.0,0.079769]
[1728396868353,0.440568,62704.0,62703.0,0.079768]
[1728396868555,0.3608,62704.0,62703.0,0.079768]
[1728396868863,0.3608,62704.0,62703.0,0.53625095]
[1728396871467,0.3608,62704.0,62703.0,0.53825095]
[1728396872264,0.0004,62707.0,62706.0,0.079765]
[1728396872467,0.0004,62707.0,62706.0,0.53624795]
[1728396873372,0.0004,62707.0,62706.0,0.45648295]
[1728396873373,0.080163,62707.0,62706.0,0.45648295]
[1728396873859,0.080163,62707.0,62706.0,0.45948295]
[1728396874060,0.081163,62707.0,62706.0,0.45948295]
[1728396874462,0.441963,62707.0,62706.0,0.45948295]
[1728396874866,1.321963,62707.0,62706.0,0.003]
[1728396875673,0.721963,62707.0,62706.0,0.003]
[1728396876366,1.321963,62707.0,62706.0,0.003]
[1728396877074,1.321963,62707.0,62682.0,0.142495]
[1728396877075,0.079809,62672.0,62671.0,0.079809]
[1728396877466,0.079809,62672.0,62671.0,0.53629195]
[1728396877873,0.079803,62676.0,62675.0,0.079803]
[1728396878267,0.079803,62676.0,62675.0,0.53628595]
[1728396880176,0.080803,62676.0,62675.0,0.46048295]
[1728396880379,0.081803,62676.0,62675.0,0.46748295]
[1728396881377,0.081803,62676.0,62675.0,0.54728695]
[1728396882083,0.002,62676.0,62675.0,0.54728695]
[1728396883987,0.081803,62676.0,62675.0,0.49081011]
[1728396884284,0.002,62676.0,62675.0,0.57061411]
[1728396884482,0.081803,62676.0,62675.0,0.57061411]
[1728396884680,0.002,62676.0,62675.0,0.57061411]
[1728396885990,0.081803,62676.0,62675.0,0.57061411]
[1728396886179,0.081803,62676.0,62675.0,0.49081011]
[1728396886883,0.361803,62676.0,62675.0,0.49081011]
[1728396887284,0.361803,62676.0,62675.0,0.46748295]
[1728396887485,0.961803,62676.0,62655.0,0.3608]
[1728396887686,0.079826,62659.0,62658.0,0.079825]
[1728396887985,0.079826,62659.0,62658.0,0.079826]
[1728396887986,0.440626,62659.0,62658.0,0.079826]
[1728396888189,0.440626,62659.0,62658.0,0.53630895]
[1728396888390,0.3608,62659.0,62658.0,0.53630895]
[1728396888886,0.3618,62659.0,62658.0,0.54330895]
[1728396889991,0.3608,62675.0,62670.0,0.01587095]
[1728396890183,0.440604,62675.0,62674.0,0.01587095]
[1728396891088,0.441604,62675.0,62674.0,0.01587095]
[1728396891683,0.3618,62675.0,62665.0,0.440616]
[1728396891885,0.07981,62670.0,62669.0,0.01587095]
[1728396892093,0.07981,62670.0,62669.0,0.079812]
[1728396892293,0.07981,62670.0,62669.0,0.09568295]
[1728396893090,0.001,62670.0,62669.0,0.09568295]
[1728396894387,0.001,62670.0,62669.0,0.37568295]
[1728396894587,0.001,62670.0,62669.0,0.09568295]
[1728396894792,0.001,62675.0,62674.0,0.079805]
[1728396894989,0.079795,62683.0,62682.0,0.079795]
[1728396895292,0.72298523,62685.0,62683.0,0.01587095]
[1728396895493,0.359793,62684.0,62683.0,0.01587095]
[1728396896285,0.44438524,62685.0,62683.0,0.01587095]
[1728396896491,0.44438524,62685.0,62682.0,0.081795]
[1728396896492,0.001,62683.0,62682.0,0.081795]
[1728396896889,0.001,62683.0,62682.0,0.09766595]
[1728396897895,0.002,62683.0,62682.0,0.09866595]
[1728396898289,0.001,62683.0,62682.0,0.09666595]
[1728396900193,0.002,62683.0,62682.0,0.09966595]
[1728396900692,0.002,62683.0,62682.0,0.12323531]
[1728396901899,0.361794,62683.0,62682.0,0.04344031]
[1728396902392,0.361794,62683.0,62682.0,0.01987095]
[1728396902600,1.440394,62683.0,62682.0,0.002]
[1728396903102,0.361794,62683.0,62682.0,0.002]
[1728396903395,1.440394,62683.0,62682.0,0.002]
[1728396903802,0.079818,62665.0,62664.0,0.440618]
[1728396903997,0.359818,62665.0,62664.0,0.440618]
[1728396904306,0.359818,62665.0,62664.0,0.09568895]
[1728396904997,0.359818,62665.0,62664.0,0.01587095]
[1728396905502,0.079818,62665.0,62664.0,0.09568895]
[1728396905904,0.001,62665.0,62664.0,0.09568895]
[1728396906204,0.002,62665.0,62664.0,0.09568895]
[1728396906597,0.34692905,62674.0,62664.0,1.320618]
[1728396906803,0.34692905,62674.0,62673.0,0.079807]
[1728396907603,0.079809,62671.0,62670.0,0.44061]
[1728396907901,0.079809,62671.0,62665.0,0.0629]
[1728396908091,0.079814,62668.0,62667.0,0.079814]
[1728396909203,0.079809,62671.0,62670.0,0.07981]
[1728396909706,0.079812,62669.0,62667.0,0.079813]
[1728396909901,0.079812,62669.0,62668.0,0.079813]
[1728396910503,0.079807,62673.0,62672.0,0.079807]
[1728396911095,0.079812,62669.0,62668.0,0.002]
[1728396911297,0.359812,62669.0,62668.0,0.002]
[1728396912301,0.360812,62669.0,62668.0,0.003]
[1728396912606,0.360812,62669.0,62668.0,0.001]
[1728396912906,1.35972,62669.0,62654.0,0.00239387]
[1728396913106,0.359826,62658.0,62654.0,0.08222487]
[1728396913306,0.07983,62655.0,62654.0,0.00239387]
[1728396913498,0.079833,62653.0,62652.0,0.079832]
[1728396913806,0.079835,62651.0,62650.0,0.440636]
[1728396914402,0.359835,62651.0,62650.0,0.3608]
[1728396914608,0.359835,62651.0,62650.0,0.38345605]
[1728396915011,0.359835,62651.0,62650.0,0.3608]
[1728396916003,0.359835,62651.0,62650.0,0.001]
[1728396916004,0.360835,62651.0,62650.0,0.001]
[1728396916209,1.800475,62651.0,62650.0,0.001]
[1728396916605,0.079845,62644.0,62638.0,0.02252798]
[1728396916811,0.28,62640.0,62636.0,0.08224757]
[1728396917007,0.3608,62643.0,62642.0,0.079846]
[1728396917708,0.002,62651.0,62643.0,0.079845]
[1728396917908,0.002,62651.0,62650.0,0.079836]
[1728396918504,0.001,62651.0,62650.0,0.079836]
[1728396918704,0.080835,62651.0,62650.0,0.079836]
[1728396919005,0.079835,62651.0,62650.0,0.079836]
[1728396919305,0.079835,62651.0,62642.0,0.3608]
[1728396919306,0.079838,62648.0,62642.0,0.3608]
[1728396919512,0.079845,62645.0,62644.0,0.079843]
[1728396919711,0.359845,62645.0,62644.0,0.079843]
[1728396920611,0.360845,62645.0,62644.0,0.079843]
[1728396920800,0.080842,62645.0,62644.0,0.079843]
[1728396922113,0.001,62645.0,62644.0,0.079843]
[1728396922514,0.002,62645.0,62644.0,0.079843]
[1728396923010,0.002,62645.0,62644.0,0.359843]
[1728396923313,0.3608,62660.0,62659.0,0.079824]
[1728396923509,0.0023948,62664.0,62659.0,0.079824]
[1728396923705,0.079826,62658.0,62657.0,0.079825]
[1728396923905,0.079831,62655.0,62654.0,0.079831]
[1728396924105,0.359831,62655.0,62654.0,0.079831]
[1728396924304,0.079833,62652.0,62651.0,0.38352133]
[1728396924519,0.079841,62646.0,62645.0,0.079842]
[1728396924810,0.359837,62649.0,62648.0,0.079838]
[1728396925014,0.079834,62652.0,62651.0,0.079835]
[1728396925308,0.07983,62655.0,62650.0,0.3608]
[1728396925515,0.3618,62660.0,62659.0,0.079824]
[1728396926413,0.3608,62660.0,62659.0,0.079824]
[1728396926613,0.0033948,62664.0,62663.0,0.079819]
[1728396926815,0.0023948,62664.0,62663.0,0.079819]
[1728396927206,0.0023948,62664.0,62663.0,0.440619]
[1728396927407,0.0023948,62664.0,62663.0,0.919379]
[1728396927617,0.3608,62676.0,62675.0,0.079804]
[1728396928219,0.3608,62676.0,62670.0,0.3608]
[1728396928517,0.28,62690.0,62684.0,0.079793]
[1728396928821,0.00239423,62685.0,62684.0,0.079793]
[1728396929114,0.28239423,62685.0,62682.0,0.079795]
[1728396929318,0.079796,62681.0,62671.0,0.079808]
[1728396929524,0.28,62674.0,62670.0,0.3608]
[1728396929705,0.28,62679.0,62673.0,0.3608]
[1728396929910,0.28,62679.0,62678.0,0.079799]
[1728396930110,0.01239423,62685.0,62673.0,0.3608]
[1728396930312,0.01239423,62685.0,62684.0,0.079793]
[1728396930511,0.00339423,62685.0,62684.0,0.079793]
[1728396931120,0.00239423,62685.0,62684.0,0.079793]
[1728396931422,0.28239423,62685.0,62684.0,0.079793]
[1728396931718,0.28239423,62685.0,62681.0,0.3608]
[1728396931918,0.079795,62682.0,62681.0,0.440596]
[1728396932123,0.28239423,62685.0,62681.0,0.3608]
[1728396932315,0.36218823,62685.0,62684.0,0.079793]
[1728396932616,0.079795,62682.0,62681.0,0.3608]
[1728396933120,0.079795,62682.0,62681.0,0.440596]
[1728396933306,0.079795,62682.0,62681.0,0.445596]
[1728396934023,0.00339423,62685.0,62684.0,0.079793]
[1728396934523,0.00239423,62685.0,62684.0,0.079793]
[1728396935120,0.3608,62696.0,62681.0,0.64668]
[1728396935428,0.07978,62694.0,62693.0,0.079779]
[1728396935727,0.440577,62696.0,62695.0,0.079779]
[1728396936113,0.3608,62696.0,62695.0,0.079779]
[1728396936314,0.6408,62696.0,62695.0,0.079779]
[1728396936513,0.720577,62696.0,62695.0,0.079779]
[1728396936915,0.07978,62694.0,62693.0,0.001]
[1728396937116,0.07978,62694.0,62693.0,0.080781]
[1728396937320,0.07978,62694.0,62693.0,0.079781]
[1728396937818,0.1929945,62694.0,62693.0,0.079781]
[1728396938528,0.13216873,62694.0,62693.0,0.079781]
[1728396939123,0.13816873,62694.0,62693.0,0.080781]
[1728396939324,0.13916873,62694.0,62693.0,0.080781]
[1728396939716,0.13216873,62694.0,62693.0,0.081781]
[1728396939924,0.13316873,62694.0,62693.0,0.081781]
[1728396940223,0.13316873,62694.0,62693.0,0.002]
[1728396940423,0.02284608,62706.0,62693.0,1.12132]
[1728396940627,0.00239301,62710.0,62706.0,0.079765]
[1728396941119,0.28,62708.0,62701.0,0.3608]
[1728396941310,0.07977,62702.0,62701.0,0.3608]
[1728396941514,0.079776,62698.0,62697.0,0.079775]
[1728396942313,0.079771,62702.0,62694.0,0.02270121]
[1728396942513,0.079771,62702.0,62697.0,0.079775]
[1728396942514,0.079776,62698.0,62697.0,0.079775]
[1728396942919,0.079771,62702.0,62693.0,0.008]
[1728396943223,0.079771,62701.0,62697.0,0.004]
[1728396943424,0.359775,62698.0,62697.0,0.004]
[1728396943624,0.360775,62698.0,62697.0,0.012]
[1728396944014,0.360775,62698.0,62697.0,0.008]
[1728396944611,0.080775,62698.0,62697.0,0.087776]
[1728396944824,0.001,62698.0,62697.0,0.087776]
[1728396945529,0.079775,62698.0,62697.0,0.10286595]
[1728396946315,0.079775,62698.0,62697.0,0.10786595]
[1728396946519,0.079772,62701.0,62700.0,0.079771]
[1728396946922,0.079775,62698.0,62697.0,0.11086495]
[1728396947221,0.079775,62698.0,62697.0,0.087775]
[1728396948230,0.079775,62698.0,62697.0,0.11063509]
[1728396948424,0.079775,62698.0,62697.0,0.10463509]
[1728396948619,0.080775,62698.0,62697.0,0.10963509]
[1728396949528,0.080775,62698.0,62697.0,0.11163509]
[1728396949823,0.080775,62698.0,62697.0,0.11063509]
[1728396951428,0.360775,62698.0,62697.0,0.008]
[1728396951624,0.079798,62683.0,62682.0,0.079794]
[1728396951827,0.079796,62681.0,62680.0,0.079797]
[1728396952020,0.079798,62680.0,62679.0,0.02569663]
[1728396952223,0.079798,62680.0,62679.0,0.0023929]
[1728396952425,0.079798,62680.0,62679.0,0.0821919]
[1728396953626,0.079798,62680.0,62679.0,0.0023929]
[1728396953927,0.079798,62680.0,62679.0,0.0053929]
[1728396954124,0.079798,62680.0,62679.0,0.0851919]
[1728396954428,0.001,62681.0,62680.0,0.079798]
[1728396954617,0.079791,62686.0,62679.0,0.0053929]
[1728396954924,0.001,62680.0,62679.0,0.0861919]
[1728396955322,0.079797,62681.0,62680.0,0.079798]
[1728396955730,0.079797,62681.0,62680.0,0.080798]
[1728396956828,0.080797,62681.0,62680.0,0.001]
[1728396957531,0.080797,62681.0,62660.0,0.0644]
[1728396957532,1.146,62681.0,62658.0,0.00239373]
[1728396957855,0.359824,62659.0,62658.0,0.00239373]
[1728396958033,0.28,62659.0,62645.0,0.079842]
[1728396958331,0.28,62659.0,62643.0,0.40863766]
[1728396958332,0.28,62652.0,62643.0,0.440644]
[1728396958633,0.3608,62655.0,62646.0,0.079841]
[1728396958823,0.079839,62648.0,62646.0,0.079841]
[1728396959024,0.07984,62647.0,62646.0,0.079841]
[1728396959219,0.079836,62650.0,62643.0,0.38373645]
[1728396959220,0.079844,62644.0,62643.0,0.38373645]
[1728396960721,0.079835,62651.0,62647.0,0.079839]
[1728396960926,0.001,62652.0,62651.0,0.079835]
[1728396961429,0.441631,62655.0,62652.0,0.079833]
[1728396961628,0.441631,62655.0,62647.0,0.28]
[1728396961629,0.440631,62655.0,62653.0,0.079832]
[1728396961830,0.0685,62661.0,62656.0,0.079827]
[1728396961831,0.079823,62661.0,62656.0,0.079827]
[1728396962132,0.079823,62661.0,62660.0,0.3608]
[1728396962133,0.079822,62661.0,62660.0,0.3608]
[1728396962627,0.3608,62668.0,62660.0,0.3608]
[1728396962934,0.07982,62663.0,62660.0,0.3608]
[1728396963134,0.3608,62668.0,62665.0,0.079817]
[1728396964329,0.3608,62668.0,62665.0,0.558537]
[1728396964631,0.3608,62677.0,62665.0,1.158537]
[1728396964827,0.3608,62677.0,62665.0,1.229437]
[1728396964828,0.079804,62676.0,62665.0,1.229437]
[1728396965041,0.079804,62676.0,62675.0,0.079804]
[1728396966130,0.079807,62673.0,62671.0,0.079809]
[1728396967029,0.28,62672.0,62665.0,0.0709]